bitfinex/quotes_SOLUSD_20240708
["timestamp","ask_amount","ask_price","bid_price","bid_amount"]
[1720461105977,7.2722,137.51,137.45,7.2751]
[1720461106789,7.2722,137.51,137.44,25.4651]
[1720461107374,7.2722,137.51,137.45,7.2753]
[1720461107788,7.2722,137.51,137.44,25.4652]
[1720461108099,7.2727,137.5,137.44,18.1894]
[1720461108278,7.2727,137.5,137.44,25.4652]
[1720461108481,20.05418714,137.52,137.44,25.4652]
[1720461108679,20.05418714,137.52,137.45,7.2753]
[1720461109200,27.15598714,137.52,137.45,7.2753]
[1720461109503,27.15598714,137.52,137.46,7.2747]
[1720461109897,27.15598714,137.52,137.45,7.4452]
[1720461110196,27.15598714,137.52,137.45,7.2752]
[1720461110775,27.15598714,137.52,137.46,7.2748]
[1720461111176,27.15598714,137.52,137.45,7.2751]
[1720461112490,7.2723,137.51,137.44,25.4651]
[1720461112694,27.15588714,137.52,137.45,7.275]
[1720461113194,13.33748714,137.52,137.46,25.4617]
[1720461113584,13.33748714,137.52,137.47,7.2742]
[1720461113789,13.33748714,137.52,137.46,25.4616]
[1720461114887,13.33748714,137.52,137.47,7.2741]
[1720461115090,13.33748714,137.52,137.46,18.187]
[1720461115600,20.60948714,137.52,137.46,18.187]
[1720461116187,5.46944211,137.52,137.47,0.17]
[1720461116382,0.04325856,137.52,137.47,0.17]
[1720461116583,0.04325856,137.52,137.48,118.1836]
[1720461116806,0.04325856,137.52,137.49,0.17]
[1720461117106,0.04325856,137.52,137.5,25.454]
[1720461117407,0.04325856,137.52,137.51,7.2721]
[1720461117704,0.04325856,137.52,137.5,18.1815]
[1720461117904,0.04325856,137.52,137.5,25.454]
[1720461118212,0.04325856,137.52,137.47,18.1845]
[1720461118401,0.04325856,137.52,137.48,0.17]
[1720461118588,0.04325856,137.52,137.49,7.2729]
[1720461118789,0.04325856,137.52,137.49,18.183]
[1720461118987,0.04325856,137.52,137.49,25.4561]
[1720461119694,0.04325856,137.52,137.5,7.2726]
[1720461120285,0.04325856,137.52,137.51,7.2721]
[1720461120692,0.04325856,137.52,137.5,7.4425]
[1720461120889,0.04325856,137.52,137.48,0.17]
[1720461121089,0.04325856,137.52,137.42,106.4893]
[1720461121296,7.31525856,137.52,137.45,7.2751]
[1720461121493,7.2723,137.51,137.45,7.2751]
[1720461121713,7.2723,137.51,137.44,107.2757]
[1720461122100,7.2723,137.51,137.44,7.2757]
[1720461122519,7.2743,137.47,137.41,100.0]
[1720461122814,22.0355,137.5,137.39,136.392]
[1720461122815,7.2751,137.46,137.39,7.2783]
[1720461122992,20.34,137.49,137.37,40.0981]
[1720461123311,20.34,137.49,137.36,216.5911]
[1720461123312,22.0355,137.5,137.44,100.0]
[1720461123624,22.0355,137.5,137.45,25.463]
[1720461123797,22.0355,137.5,137.44,7.2757]
[1720461124000,29.3082,137.5,137.43,7.2759]
[1720461124495,22.0355,137.5,137.44,7.2758]
[1720461124701,22.0355,137.5,137.44,7.2757]
[1720461124915,27.67638399,137.5,137.45,18.1879]
[1720461125095,27.67638399,137.5,137.42,100.0]
[1720461125286,27.67638399,137.5,137.42,18.1915]
[1720461125489,7.2734,137.49,137.42,25.4684]
[1720461125691,7.2738,137.48,137.42,18.1915]
[1720461125927,7.2734,137.49,137.42,25.4684]
[1720461126528,0.17,137.49,137.39,18.1952]
[1720461126691,20.34,137.49,137.39,18.1952]
[1720461127210,7.2748,137.46,137.4,7.2778]
[1720461127409,27.67638399,137.5,137.41,100.0]
[1720461127602,29.62421537,137.5,137.42,18.1912]
[1720461127804,22.0355,137.5,137.42,18.1912]
[1720461128195,22.0355,137.5,137.39,100.0]
[1720461128196,7.2753,137.46,137.39,25.4732]
[1720461128405,22.0355,137.5,137.41,18.1935]
[1720461128712,20.0,137.49,137.43,7.276]
[1720461129014,29.3085,137.5,137.43,7.276]
[1720461129818,0.17,137.49,137.43,7.276]
[1720461130112,22.0355,137.5,137.44,7.2757]
[1720461130485,22.0355,137.5,137.45,7.2753]
[1720461130896,22.0355,137.5,137.44,107.2757]
[1720461131105,22.0355,137.5,137.42,100.0]
[1720461131295,7.4435,137.49,137.42,107.2768]
[1720461131698,0.17,137.49,137.43,7.2763]
[1720461131906,7.2744,137.47,137.4,7.2777]
[1720461132118,7.275,137.46,137.39,25.4742]
[1720461132499,7.2741,137.48,137.41,7.2771]
[1720461132725,7.2741,137.48,137.41,125.4707]
[1720461133043,22.0355,137.5,137.43,100.0]
[1720461133221,22.0355,137.5,137.44,7.2757]
[1720461134116,22.0355,137.5,137.43,25.6369]
[1720461134117,29.3082,137.5,137.43,25.6369]
[1720461134707,22.0355,137.5,137.45,7.2752]
[1720461135296,22.0355,137.5,137.45,18.1881]
[1720461135500,22.0355,137.5,137.46,7.2747]
[1720461136026,0.04325856,137.52,137.47,222.07]
[1720461136731,0.04325856,137.52,137.48,18.1838]
[1720461136901,0.04325856,137.52,137.5,18.1816]
[1720461137097,0.04325856,137.52,137.51,107.4421]
[1720461137303,0.04325856,137.52,137.51,229.5121]
[1720461137832,0.04325856,137.52,137.51,249.5121]
[1720461138401,0.04325856,137.52,137.51,255.8318]
[1720461139421,0.04325856,137.52,137.51,229.5121]
[1720461141245,0.04325856,137.52,137.51,229.3421]
[1720461142446,0.04325856,137.52,137.51,129.5121]
[1720461142760,0.04325856,137.52,137.49,200.0]
[1720461142918,0.04325856,137.52,137.47,18.1848]
[1720461143119,0.04325856,137.52,137.44,18.1889]
[1720461143313,0.04325856,137.52,137.44,25.4646]
[1720461143517,0.04325856,137.52,137.41,106.2687]
[1720461143518,0.21325856,137.52,137.43,7.2762]
[1720461143754,7.2732,137.5,137.42,7.2767]
[1720461144050,7.4422,137.51,137.43,18.1904]
[1720461144623,6.0729,137.48,137.4,18.1943]
[1720461144949,7.4446,137.47,137.4,25.472]
[1720461145413,0.17,137.47,137.38,100.0]
[1720461145619,0.17,137.47,137.42,18.1918]
[1720461146020,6.0729,137.48,137.42,18.1918]
[1720461146254,6.0729,137.48,137.42,118.1918]
[1720461146439,6.0729,137.48,137.39,154.5856]
[1720461146749,0.17,137.47,137.39,25.4735]
[1720461146950,7.4444,137.47,137.4,7.2779]
[1720461147654,0.17,137.47,137.4,7.2779]
[1720461148031,0.17,137.47,137.43,7.2759]
[1720461148231,0.17,137.47,137.42,7.2768]
[1720461148851,0.17,137.47,137.38,121.9]
[1720461149147,0.17,137.47,137.39,100.17]
[1720461149353,0.17,137.47,137.41,7.2771]
[1720461149540,0.34,137.47,137.37,18.198]
[1720461149734,15.0451,137.45,137.37,18.198]
[1720461149936,15.0451,137.45,137.34,118.2019]
[1720461150142,20.17,137.44,137.34,18.2019]
[1720461150442,20.17,137.44,137.36,25.4796]
[1720461150642,7.2768,137.43,137.36,25.4796]
[1720461150848,27.4459,137.44,137.36,25.4796]
[1720461151051,15.0451,137.45,137.38,25.4761]
[1720461151361,15.0451,137.45,137.4,18.1945]
[1720461151655,15.0451,137.45,137.4,25.4723]
[1720461152550,15.0451,137.45,137.41,7.2773]
[1720461152928,15.0451,137.45,137.42,7.2768]
[1720461153430,15.0451,137.45,137.4,25.4723]
[1720461153953,5.51174998,137.47,137.41,200.17]
[1720461154162,13.65963152,137.48,137.42,7.2766]
[1720461154728,13.65963152,137.48,137.4,18.1945]
[1720461155039,20.93353152,137.48,137.41,0.17]
[1720461155357,13.65963152,137.48,137.42,7.2767]
[1720461156028,19.18523885,137.48,137.42,7.2767]
[1720461157464,19.18523885,137.48,137.41,7.4473]
[1720461157957,19.18523885,137.48,137.4,18.1945]
[1720461158153,7.2749,137.46,137.4,18.1945]
[1720461158359,19.18523885,137.48,137.4,18.1945]
[1720461158564,19.18523885,137.48,137.42,0.17]
[1720461158752,11.59850733,137.48,137.41,100.0]
[1720461158931,11.59850733,137.48,137.4,18.1945]
[1720461158932,7.2746,137.47,137.4,25.4724]
[1720461159128,19.18845957,137.48,137.37,18.198]
[1720461159329,19.18845957,137.48,137.35,100.0]
[1720461159528,7.2772,137.42,137.35,7.2806]
[1720461159772,19.18845957,137.48,137.36,7.28]
[1720461159773,7.2766,137.43,137.36,7.28]
[1720461160265,15.002,137.41,137.35,25.4818]
[1720461160760,28.776,137.41,137.34,7.281]
[1720461161465,21.4985,137.41,137.35,7.2803]
[1720461161636,21.4985,137.41,137.36,18.1997]
[1720461161957,21.4985,137.41,137.37,7.2792]
[1720461162153,21.4985,137.41,137.38,7.279]
[1720461162358,21.4985,137.41,137.38,18.1973]
[1720461162549,22.5005,137.45,137.39,7.2785]
[1720461162864,29.7759,137.45,137.38,25.4761]
[1720461163034,7.2759,137.44,137.38,18.1973]
[1720461163228,22.5005,137.45,137.35,200.0]
[1720461163229,7.2764,137.43,137.35,18.2004]
[1720461163433,7.2769,137.42,137.36,0.17]
[1720461163651,7.2765,137.43,137.36,7.4501]
[1720461164539,7.2771,137.42,137.35,25.4809]
[1720461165161,7.2766,137.43,137.36,7.2801]
[1720461166567,7.277,137.42,137.35,25.4809]
[1720461166748,0.17,137.44,137.35,18.3704]
[1720461167061,0.17,137.44,137.37,7.2795]
[1720461167864,7.4462,137.44,137.37,7.2795]
[1720461168966,7.2764,137.43,137.37,7.2795]
[1720461169143,22.5005,137.45,137.38,7.279]
[1720461169144,29.776,137.45,137.38,7.279]
[1720461169366,30.08907745,137.45,137.39,7.2784]
[1720461169575,30.08907745,137.45,137.37,18.3689]
[1720461169777,7.2767,137.43,137.36,7.2799]
[1720461169980,7.2767,137.43,137.35,100.17]
[1720461170288,7.276,137.44,137.37,7.4495]
[1720461170682,37.36447745,137.45,137.38,7.2788]
[1720461170885,37.36447745,137.45,137.39,7.4481]
[1720461170886,30.08907745,137.45,137.39,7.4481]
[1720461171086,37.36447745,137.45,137.38,25.4763]
[1720461172006,37.36447745,137.45,137.39,7.2785]
[1720461172171,30.08907745,137.45,137.39,7.2785]
[1720461172582,37.36447745,137.45,137.38,25.4763]
[1720461173800,7.58857745,137.45,137.43,200.0]
[1720461173990,22.2713,137.49,137.46,7.2747]
[1720461174191,0.04325856,137.52,137.47,7.2741]
[1720461174895,0.04325856,137.52,137.46,7.2746]
[1720461175918,0.21325856,137.52,137.45,25.4635]
[1720461176081,7.48505856,137.52,137.45,25.4635]
[1720461176282,7.31505856,137.52,137.45,25.4635]
[1720461177004,7.31505856,137.52,137.46,7.4446]
[1720461177005,0.04325856,137.52,137.46,7.4446]
[1720461177387,0.04325856,137.52,137.47,7.2742]
[1720461178712,0.04325856,137.52,137.46,7.4446]
[1720461179108,0.04325856,137.52,137.47,7.2742]
[1720461179423,0.04325856,137.52,137.48,18.354]
[1720461179810,0.04325856,137.52,137.48,25.6275]
[1720461180431,0.04325856,137.52,137.46,7.2747]
[1720461180728,0.04325856,137.52,137.48,200.0]
[1720461180915,0.04325856,137.52,137.49,18.3526]
[1720461181221,0.04325856,137.52,137.51,7.2721]
[1720461181629,0.04325856,137.52,137.51,25.6225]
[1720461182413,0.04325856,137.52,137.51,18.3504]
[1720461182724,0.04325856,137.52,137.48,18.1832]
[1720461183028,0.04325856,137.52,137.49,7.4428]
[1720461183421,0.04325856,137.52,137.48,18.1832]
[1720461183822,0.04325856,137.52,137.48,25.4569]
[1720461184011,0.04325856,137.52,137.46,7.2746]
[1720461184348,0.04325856,137.52,137.47,7.2743]
[1720461184527,0.04325856,137.52,137.45,18.1871]
[1720461184731,0.04325856,137.52,137.45,25.4624]
[1720461184933,7.31505856,137.52,137.45,25.4624]
[1720461185627,7.31505856,137.52,137.45,18.1871]
[1720461185628,7.2723,137.51,137.45,18.1871]
[1720461185824,7.2723,137.51,137.45,25.4624]
[1720461186022,0.04325856,137.52,137.46,7.2748]
[1720461186221,0.04325856,137.52,137.47,18.1854]
[1720461187428,0.04325856,137.52,137.47,25.4594]
[1720461187813,0.04325856,137.52,137.44,118.1885]
[1720461188019,0.04325856,137.52,137.46,0.17]
[1720461188237,0.04325856,137.52,137.47,7.2742]
[1720461188838,0.04325856,137.52,137.48,7.2736]
[1720461189037,0.04325856,137.52,137.48,25.4579]
[1720461189343,7.2725,137.51,137.44,7.2756]
[1720461190048,0.21325856,137.52,137.37,100.0]
[1720461190049,6.4739,137.49,137.37,100.0]
[1720461190254,7.2764,137.44,137.37,7.2792]
[1720461191054,0.17,137.48,137.38,18.1974]
[1720461191240,7.2756,137.45,137.38,18.1974]
[1720461191430,7.2756,137.45,137.38,25.4761]
[1720461191751,7.275,137.46,137.39,7.2784]
[1720461192254,7.58656988,137.47,137.4,18.1947]
[1720461192458,14.86106988,137.47,137.4,25.4726]
[1720461192647,7.275,137.46,137.4,18.1947]
[1720461193158,14.86096988,137.47,137.4,25.4725]
[1720461194032,7.2748,137.46,137.4,25.4725]
[1720461194239,7.58656988,137.47,137.41,7.277]
[1720461194443,7.58656988,137.47,137.42,7.2769]
[1720461195058,6.4739,137.49,137.43,7.2762]
[1720461195368,14.05964106,137.49,137.43,7.2762]
[1720461195535,22.8032,137.5,137.43,7.2762]
[1720461195734,15.5301,137.5,137.44,18.1896]
[1720461195940,15.5301,137.5,137.45,7.2752]
[1720461196766,15.5301,137.5,137.42,121.9]
[1720461196767,21.07901979,137.5,137.41,18.1927]
[1720461196943,7.275,137.46,137.39,7.2781]
[1720461197147,7.2743,137.47,137.4,7.2779]
[1720461197333,7.2749,137.46,137.39,7.2783]
[1720461197638,7.2744,137.47,137.4,7.2778]
[1720461198030,7.2749,137.46,137.39,7.2783]
[1720461199058,7.2765,137.43,137.36,7.2798]
[1720461199250,7.2761,137.44,137.37,7.2795]
[1720461199459,7.2777,137.41,137.32,18.2047]
[1720461199639,7.2777,137.41,137.34,7.2811]
[1720461199835,15.1712,137.43,137.33,7.2816]
[1720461199836,6.3459,137.39,137.33,7.2816]
[1720461200443,6.3459,137.39,137.34,18.2027]
[1720461201153,6.3459,137.39,137.34,25.4835]
[1720461201354,6.3459,137.39,137.35,21.9]
[1720461201546,29.1106,137.43,137.36,7.2801]
[1720461201738,34.72222901,137.43,137.36,7.2801]
[1720461201946,27.44532901,137.43,137.37,121.9]
[1720461202151,21.8337,137.43,137.37,21.9]
[1720461202347,21.8337,137.43,137.38,18.1972]
[1720461202741,21.8337,137.43,137.37,7.2792]
[1720461202940,21.8337,137.43,137.37,18.1981]
[1720461203148,21.8337,137.43,137.39,7.2785]
[1720461203550,21.8337,137.43,137.38,21.9]
[1720461204034,21.8337,137.43,137.39,7.4481]
[1720461204231,21.8337,137.43,137.39,40.2661]
[1720461204531,21.8337,137.43,137.39,47.5444]
[1720461204949,21.8337,137.43,137.37,7.2791]
[1720461205155,21.8337,137.43,137.36,40.2695]
[1720461205156,29.1104,137.43,137.36,47.3794]
[1720461205336,21.8337,137.43,137.37,29.1795]
[1720461206565,21.8337,137.43,137.38,7.279]
[1720461207156,21.8337,137.43,137.38,21.9]
[1720461207475,21.8337,137.43,137.39,47.5446]
[1720461207969,29.1101,137.43,137.37,21.9]
[1720461209770,21.8337,137.43,137.37,29.1794]
[1720461210370,21.8337,137.43,137.38,7.279]
[1720461211256,5.62682206,137.45,137.39,121.9]
[1720461211459,36.96561782,137.46,137.4,7.278]
[1720461212953,36.96561782,137.46,137.39,147.3745]
[1720461214180,42.63883282,137.46,137.39,147.3745]
[1720461214585,19.37323282,137.46,137.42,0.17]
[1720461214788,21.63328171,137.49,137.45,21.9]
[1720461215077,16.0517,137.49,137.45,21.9]
[1720461215470,16.0517,137.49,137.45,29.1752]
[1720461215982,7.274,137.48,137.44,0.17]
[1720461216143,16.0517,137.49,137.44,22.07]
[1720461216347,4.99255182,137.52,137.48,129.3435]
[1720461216348,0.04325856,137.52,137.48,129.3435]
[1720461216576,0.04325856,137.52,137.5,7.2726]
[1720461217077,0.04325856,137.52,137.49,47.3558]
[1720461217274,0.04325856,137.52,137.49,21.9]
[1720461217951,0.04325856,137.52,137.46,21.9]
[1720461218158,7.31485856,137.52,137.45,18.3574]
[1720461218364,0.04325856,137.52,137.45,25.6326]
[1720461218572,7.31505856,137.52,137.45,25.6326]
[1720461218767,7.31505856,137.52,137.45,125.6326]
[1720461219088,7.31505856,137.52,137.46,7.2748]
[1720461219292,0.04325856,137.52,137.46,7.2748]
[1720461219493,0.04325856,137.52,137.46,29.1748]
[1720461221084,0.04325856,137.52,137.48,25.4577]
[1720461221399,0.04325856,137.52,137.49,7.2732]
[1720461222079,0.04325856,137.52,137.48,47.3578]
[1720461222391,0.04325856,137.52,137.49,7.2731]
[1720461222770,0.04325856,137.52,137.49,129.1731]
[1720461223487,0.04325856,137.52,137.5,7.2725]
[1720461223695,0.04325856,137.52,137.49,121.9]
[1720461223696,0.04325856,137.52,137.49,129.173]
[1720461224574,0.04325856,137.52,137.49,21.9]
[1720461224771,0.04325856,137.52,137.49,29.1731]
[1720461224978,0.04325856,137.52,137.49,21.9]
[1720461225993,0.04325856,137.52,137.51,7.2721]
[1720461226365,0.04325856,137.52,137.5,40.2516]
[1720461226796,0.04325856,137.52,137.5,18.3516]
[1720461227095,0.04325856,137.52,137.48,29.1736]
[1720461227468,0.04325856,137.52,137.47,118.3547]
[1720461227469,0.04325856,137.52,137.47,18.3547]
[1720461228074,0.04325856,137.52,137.47,40.0847]
[1720461228394,0.04325856,137.52,137.48,7.2737]
[1720461228590,0.04325856,137.52,137.49,7.2732]
[1720461229290,0.04325856,137.52,137.48,29.1736]
[1720461230899,0.04325856,137.52,137.49,40.083]
[1720461231104,0.04325856,137.52,137.49,47.3562]
[1720461231400,0.04325856,137.52,137.5,7.2726]
[1720461231694,0.04325856,137.52,137.48,0.17]
[1720461231875,0.04325856,137.52,137.48,7.4437]
[1720461232080,0.04325856,137.52,137.47,7.2742]
[1720461232584,0.04325856,137.52,137.46,25.6313]
[1720461232893,0.04325856,137.52,137.47,7.2742]
[1720461233900,0.04325856,137.52,137.46,25.6311]
[1720461234076,0.04325856,137.52,137.47,7.2742]
[1720461234279,0.04325856,137.52,137.46,18.3565]
[1720461234497,0.04325856,137.52,137.47,21.9]
[1720461234699,0.04325856,137.52,137.47,29.1741]
[1720461235196,0.04325856,137.52,137.47,21.9]
[1720461235700,0.04325856,137.52,137.47,29.1741]
[1720461236396,0.04325856,137.52,137.49,7.2732]
[1720461237493,0.04325856,137.52,137.48,47.3577]
[1720461238498,0.04325856,137.52,137.49,0.17]
[1720461239489,0.04325856,137.52,137.5,100.0]
[1720461239704,0.04325856,137.52,137.51,129.5121]
[1720461240314,0.04325856,137.52,137.5,47.354]
[1720461240477,0.04325856,137.52,137.51,29.3421]
[1720461240677,0.04325856,137.52,137.51,129.3421]
[1720461241304,0.04325856,137.52,137.5,25.4541]
[1720461241597,0.04325856,137.52,137.5,47.3541]
[1720461241784,0.04325856,137.52,137.51,0.17]
[1720461241986,0.04325856,137.52,137.5,47.3541]
[1720461242296,0.04325856,137.52,137.51,7.4421]
[1720461242497,0.04325856,137.52,137.5,47.354]
[1720461242887,0.04325856,137.52,137.51,7.4421]
[1720461243094,0.04325856,137.52,137.51,129.3421]
[1720461243688,0.04325856,137.52,137.51,229.3421]
[1720461243893,0.04325856,137.52,137.51,229.5121]
[1720461244098,0.04325856,137.52,137.51,129.5121]
[1720461244419,0.04325856,137.52,137.51,229.5121]
[1720461245615,0.04325856,137.52,137.51,129.5121]
[1720461245777,0.04325856,137.52,137.51,229.5121]
[1720461248203,0.04325856,137.52,137.51,129.5121]
[1720461248593,0.04325856,137.52,137.5,47.354]
[1720461249010,0.04325856,137.52,137.51,29.1721]
[1720461250012,0.04325856,137.52,137.51,29.3421]
[1720461250711,0.04325856,137.52,137.51,129.3421]
[1720461251004,0.04325856,137.52,137.51,29.3421]
[1720461251207,0.04325856,137.52,137.51,129.3421]
[1720461251409,0.04325856,137.52,137.51,129.5121]
[1720461252288,0.04325856,137.52,137.51,29.3421]
[1720461252709,0.04325856,137.52,137.51,22.07]
[1720461252910,0.04325856,137.52,137.51,0.17]
[1720461253107,0.04325856,137.52,137.47,118.1844]
[1720461253417,16.5151,137.51,137.44,18.1886]
[1720461253619,23.7875,137.51,137.44,25.4644]
[1720461253830,37.7551,137.51,137.42,21.9]
[1720461254336,37.7551,137.51,137.43,29.176]
[1720461254337,7.273,137.5,137.43,29.176]
[1720461254615,7.2732,137.49,137.42,7.2767]
[1720461254823,6.3829,137.48,137.42,7.2767]
[1720461254993,6.3829,137.48,137.42,29.1767]
[1720461256012,6.3829,137.48,137.39,100.0]
[1720461256330,7.2744,137.47,137.39,100.0]
[1720461256615,34.897,137.48,137.41,7.2774]
[1720461257291,6.3829,137.48,137.43,0.17]
[1720461257614,6.3829,137.48,137.43,7.4463]
[1720461257812,6.3829,137.48,137.43,0.17]
[1720461258316,6.3829,137.48,137.41,200.0]
[1720461258317,6.3829,137.48,137.41,122.07]
[1720461258691,6.3829,137.48,137.42,7.2768]
[1720461258986,6.3829,137.48,137.43,7.2763]
[1720461259929,6.3829,137.48,137.43,0.17]
[1720461260691,16.5151,137.51,137.48,7.2737]
[1720461261013,6.46445856,137.52,137.47,147.3596]
[1720461261212,6.46445856,137.52,137.48,7.4436]
[1720461261538,6.46445856,137.52,137.48,29.3436]
[1720461262022,0.04325856,137.52,137.49,40.0825]
[1720461262319,0.04325856,137.52,137.5,7.2723]
[1720461262501,0.04325856,137.52,137.51,7.2721]
[1720461262889,0.04325856,137.52,137.51,29.5121]
[1720461263090,0.04325856,137.52,137.51,129.5121]
[1720461264443,15.4198,137.63,137.57,40.2415]
[1720461264746,15.4198,137.63,137.58,7.2681]
[1720461265340,15.4198,137.63,137.58,121.9]
[1720461265520,15.4198,137.63,137.59,7.2678]
[1720461266639,22.6857,137.63,137.57,18.3415]
[1720461267054,22.6857,137.63,137.54,118.1756]
[1720461267249,22.6857,137.63,137.55,7.2696]
[1720461267548,7.2664,137.62,137.55,7.2696]
[1720461267843,15.4198,137.63,137.56,40.0733]
[1720461268048,22.6857,137.63,137.56,25.4428]
[1720461268219,22.6857,137.63,137.56,18.1733]
[1720461268653,15.4198,137.63,137.53,40.247]
[1720461268949,22.6856,137.63,137.55,25.6144]
[1720461269164,15.4198,137.63,137.55,25.6144]
[1720461269454,15.4198,137.63,137.56,7.2694]
[1720461270253,7.2669,137.61,137.55,18.1745]
[1720461270755,7.2677,137.6,137.52,118.1788]
[1720461270953,7.2677,137.6,137.48,18.1831]
[1720461270954,18.339,137.6,137.48,18.1831]
[1720461271124,16.1277,137.55,137.48,25.4566]
[1720461271327,7.2716,137.52,137.45,18.1878]
[1720461271758,7.2711,137.53,137.45,18.1878]
[1720461271926,7.2719,137.52,137.45,18.1878]
[1720461272633,7.2712,137.53,137.45,18.1878]
[1720461273869,7.2712,137.53,137.46,7.2747]
[1720461274361,0.17,137.52,137.44,0.17]
[1720461274529,0.17,137.52,137.43,0.17]
[1720461274720,7.2725,137.51,137.43,7.2762]
[1720461275125,7.2725,137.51,137.44,7.2758]
[1720461275334,7.58538509,137.5,137.44,7.2758]
[1720461275566,7.58538509,137.5,137.43,7.2764]
[1720461276734,7.58538509,137.5,137.44,18.1893]
[1720461276944,7.2717,137.52,137.45,0.17]
[1720461277260,7.2722,137.51,137.44,25.4651]
[1720461278460,7.2727,137.5,137.44,18.1893]
[1720461279241,7.2733,137.49,137.42,7.6168]
[1720461279565,7.2733,137.49,137.42,7.4468]
[1720461280682,7.2728,137.5,137.42,7.4468]
[1720461282047,13.30839759,137.52,137.41,140.0928]
[1720461282048,22.7664,137.48,137.41,18.1928]
[1720461282960,6.5961,137.47,137.39,107.278]
[1720461283134,6.5961,137.47,137.39,129.178]
[1720461283738,6.5961,137.47,137.39,100.0]
[1720461284034,6.5961,137.47,137.41,7.2773]
[1720461285361,12.19305559,137.47,137.41,7.2773]
[1720461285762,19.46735559,137.47,137.4,29.1778]
[1720461285963,19.46735559,137.47,137.4,7.2778]
[1720461286163,7.2748,137.46,137.39,125.6438]
[1720461286669,7.2756,137.45,137.39,118.3654]
[1720461286845,7.275,137.46,137.39,118.3654]
[1720461287047,7.275,137.46,137.39,125.6439]
[1720461287250,7.2755,137.45,137.38,7.279]
[1720461287448,14.86325215,137.45,137.38,7.279]
[1720461288054,14.86325215,137.45,137.39,7.2785]
[1720461288358,14.86325215,137.45,137.38,25.4763]
[1720461288562,36.13325215,137.45,137.38,25.4763]
[1720461289148,28.85775215,137.45,137.4,18.1946]
[1720461289363,19.46755559,137.47,137.4,25.4722]
[1720461289663,27.05415927,137.47,137.4,25.4722]
[1720461290372,7.2748,137.46,137.4,0.17]
[1720461290678,19.77965927,137.47,137.38,100.0]
[1720461290858,7.2759,137.44,137.38,0.17]
[1720461291057,7.2765,137.43,137.37,18.1978]
[1720461291262,7.276,137.44,137.37,25.4773]
[1720461291478,21.27,137.45,137.38,7.2789]
[1720461291479,28.5455,137.45,137.38,7.2789]
[1720461294051,7.276,137.44,137.37,25.4772]
[1720461296273,7.276,137.44,137.38,7.2789]
[1720461297272,28.5454,137.45,137.39,7.2785]
[1720461297461,21.27,137.45,137.38,7.2789]
[1720461297661,28.5454,137.45,137.38,7.2789]
[1720461298268,7.2759,137.44,137.37,25.4773]
[1720461298467,7.2766,137.43,137.36,29.35]
[1720461298672,7.2766,137.43,137.37,0.17]
[1720461298970,7.2775,137.41,137.35,7.2805]
[1720461299171,7.278,137.4,137.34,25.4828]
[1720461299566,7.2777,137.41,137.34,25.4828]
[1720461299761,28.5473,137.42,137.35,7.2805]
[1720461299958,14.86802594,137.41,137.34,25.4829]
[1720461300363,7.59052594,137.41,137.35,7.2806]
[1720461301268,7.2786,137.39,137.33,0.17]
[1720461301780,29.116,137.4,137.33,25.6556]
[1720461302169,21.8379,137.4,137.33,118.374]
[1720461302372,21.8379,137.4,137.35,7.2803]
[1720461303479,21.8379,137.4,137.34,7.281]
[1720461303671,29.116,137.4,137.33,47.5555]
[1720461304068,29.116,137.4,137.32,0.17]
[1720461304069,21.8379,137.4,137.32,0.17]
[1720461304270,7.2794,137.38,137.31,129.1823]
[1720461304584,7.2794,137.38,137.32,7.2822]
[1720461304872,7.2801,137.36,137.3,18.207]